bitfinex/quotes_ETHUSD_20250815
["timestamp","ask_amount","ask_price","bid_price","bid_amount"]
[1755233376240,13.63352816,4626.5,4626.3,0.001]
[1755233376451,3.81791884,4626.4,4626.3,0.001]
[1755233376739,10.70409665,4626.4,4626.3,0.001]
[1755233376943,12.83858567,4626.4,4626.3,0.001]
[1755233378913,13.87836547,4626.4,4626.3,0.001]
[1755233380158,13.41646547,4626.4,4626.3,0.001]
[1755233380366,13.30048567,4626.4,4626.3,0.001]
[1755233380658,14.06991325,4626.4,4626.3,0.001]
[1755233381627,13.50154407,4626.4,4626.3,0.001]
[1755233382362,14.07248332,4626.4,4626.3,0.001]
[1755233382531,13.50152809,4626.4,4626.3,0.001]
[1755233382949,14.07248338,4626.4,4626.3,0.001]
[1755233383265,13.14468338,4626.4,4626.3,0.001]
[1755233383451,13.61058338,4626.4,4626.3,0.001]
[1755233383939,12.83858567,4626.4,4626.3,0.001]
[1755233384868,2.16164804,4626.1,4626.0,0.001]
[1755233385036,11.93480564,4626.1,4626.0,0.001]
[1755233385249,2.16216216,4625.0,4624.9,0.001]
[1755233385430,12.01629916,4625.0,4624.9,0.001]
[1755233385631,12.47933997,4625.0,4624.9,0.001]
[1755233387530,12.47933997,4625.0,4624.9,0.4598]
[1755233387930,12.47933997,4625.0,4624.9,0.001]
[1755233388685,12.47933997,4625.0,4624.9,0.4598]
[1755233390770,6.99217781,4625.0,4624.9,0.4598]
[1755233390970,3.433,4625.0,4624.9,0.4598]
[1755233391172,3.433,4625.0,4624.9,0.9279]
[1755233391173,3.325,4625.0,4624.9,0.9279]
[1755233391474,0.108,4625.2,4624.9,0.9279]
[1755233391776,0.108,4625.2,4625.0,0.9401]
[1755233391777,3.325,4625.2,4625.0,0.9401]
[1755233391976,0.108,4625.4,4624.9,0.001]
[1755233391977,3.325,4625.3,4625.1,0.9401]
[1755233392141,3.325,4625.3,4625.2,0.4977]
[1755233392779,3.325,4625.3,4625.2,0.4477]
[1755233392942,3.325,4625.3,4625.2,0.8901]
[1755233393471,3.325,4625.3,4625.2,0.4477]
[1755233393662,3.325,4625.3,4625.2,0.8901]
[1755233395851,0.108,4625.7,4625.2,0.8901]
[1755233396052,3.325,4625.8,4625.3,1.0481]
[1755233396289,3.325,4625.8,4625.4,0.9401]
[1755233396588,3.325,4625.8,4625.5,0.9401]
[1755233396885,3.325,4625.8,4625.6,0.9401]
[1755233397257,3.325,4625.8,4625.7,0.4977]
[1755233398753,3.325,4625.8,4625.3,0.108]
[1755233399182,3.325,4625.8,4625.4,0.4977]
[1755233399383,3.325,4625.8,4625.3,0.108]
[1755233399384,5.48678966,4625.8,4625.3,0.108]
[1755233399556,0.4581,4625.7,4625.3,0.108]
[1755233400183,3.325,4625.8,4625.3,0.6057]
[1755233400385,3.325,4625.8,4625.4,0.4977]
[1755233400554,0.002,4626.4,4625.5,3.10202196]
[1755233400755,0.108,4626.2,4625.6,0.4977]
[1755233400954,3.325,4626.1,4625.6,0.6057]
[1755233401188,3.325,4626.1,4625.7,0.4424]
[1755233401496,3.325,4626.1,4625.8,0.4977]
[1755233401790,3.325,4626.1,4625.9,0.4424]
[1755233401953,3.325,4626.1,4625.9,0.5504]
[1755233402150,3.325,4626.1,4626.0,0.4977]
[1755233403689,0.002,4626.4,4626.0,0.4977]
[1755233403985,0.002,4626.4,4626.1,0.4977]
[1755233404189,0.002,4626.4,4626.1,0.9401]
[1755233404387,0.002,4626.4,4626.2,0.4424]
[1755233404705,0.002,4626.4,4626.2,1.0481]
[1755233405185,0.002,4626.4,4626.3,0.4977]
[1755233405573,0.002,4626.4,4626.3,0.9401]
[1755233406569,0.002,4626.4,4626.3,3.10165459]
[1755233406768,0.002,4626.4,4626.3,3.65483493]
[1755233406990,0.002,4626.4,4626.3,3.63878852]
[1755233407182,0.002,4626.4,4626.3,4.18878852]
[1755233407364,0.002,4626.4,4626.3,3.74638852]
[1755233407758,0.002,4626.4,4626.3,4.18878852]
[1755233411091,0.002,4626.4,4626.3,1.58483393]
[1755233411605,0.002,4626.4,4626.3,1.0477]
[1755233412204,0.002,4626.4,4626.3,3.20925459]
[1755233418010,0.002,4626.4,4626.3,1.0477]
[1755233418177,0.002,4626.4,4626.2,0.108]
[1755233418382,0.4581,4626.3,4624.9,4.7487]
[1755233418585,0.4581,4626.3,4625.8,0.108]
[1755233419088,0.4581,4626.2,4625.8,0.108]
[1755233419287,0.4581,4626.1,4625.8,0.108]
[1755233419490,0.4581,4626.0,4625.8,0.108]
[1755233420511,2.27152118,4626.4,4625.8,0.108]
[1755233420512,0.4581,4626.3,4625.8,0.108]
[1755233421010,2.16156057,4626.3,4625.8,0.108]
[1755233421309,0.4581,4626.2,4625.8,0.108]
[1755233421513,22.69828221,4626.1,4625.1,0.001]
[1755233421714,9.743137,4626.0,4625.1,2.16311296]
[1755233422020,0.4567,4625.9,4625.1,2.16311236]
[1755233422187,2.16183298,4625.8,4625.1,0.001]
[1755233422393,0.4567,4625.9,4625.1,0.001]
[1755233422394,0.02702293,4625.7,4625.1,0.001]
[1755233422714,2.16202338,4625.3,4625.1,0.001]
[1755233423012,0.21620234,4625.3,4625.1,0.001]
[1755233423217,2.61876866,4625.2,4625.1,0.001]
[1755233424314,0.4567,4625.2,4625.1,0.001]
[1755233425720,0.4567,4626.0,4625.1,0.001]
[1755233425928,3.322,4625.7,4625.1,0.4931]
[1755233426221,2.16188775,4625.6,4625.1,0.4931]
[1755233426821,3.322,4625.7,4625.1,0.001]
[1755233427013,3.322,4625.7,4625.2,0.4921]
[1755233427191,3.322,4625.7,4625.3,0.4921]
[1755233427895,0.4567,4625.6,4625.1,0.001]
[1755233428333,0.4567,4625.5,4625.1,0.001]
[1755233429839,2.16189145,4625.6,4625.1,0.001]
[1755233430134,0.4567,4625.4,4625.1,0.001]
[1755233432006,0.4567,4625.4,4625.2,0.108]
[1755233433832,3.322,4625.7,4625.2,0.108]
[1755233434032,0.4567,4625.3,4625.1,0.001]
[1755233434336,3.43,4625.7,4625.1,0.001]
[1755233434542,5.59187999,4625.7,4625.1,0.001]
[1755233434738,6.4129102,4625.7,4625.1,0.001]
[1755233434934,0.4567,4625.6,4625.1,0.001]
[1755233435301,6.4129102,4625.7,4625.1,0.001]
[1755233435502,4.25103021,4625.7,4625.1,0.001]
[1755233435848,5.59184167,4625.7,4625.1,0.001]
[1755233436056,2.16188189,4625.6,4625.1,0.001]
[1755233436260,2.61858189,4625.6,4625.1,0.001]
[1755233436457,2.16188189,4625.6,4625.1,0.001]
[1755233436646,0.4567,4625.5,4625.1,0.001]
[1755233437459,0.4567,4625.4,4625.1,0.001]
[1755233438922,3.43,4625.7,4625.1,0.001]
[1755233439123,3.43,4625.7,4625.2,0.108]
[1755233439652,3.8867,4625.7,4625.2,0.108]
[1755233440231,3.43,4625.7,4625.2,0.108]
[1755233440437,0.4567,4625.6,4625.2,0.108]
[1755233441171,0.4567,4625.5,4625.2,0.108]
[1755233441860,2.26983706,4625.7,4625.2,0.108]
[1755233442158,0.4567,4625.6,4625.2,0.108]
[1755233442357,2.62546871,4625.9,4625.2,0.108]
[1755233442669,2.73346871,4625.9,4625.2,0.108]
[1755233443166,0.4587,4626.4,4625.6,2.16185767]
[1755233443466,2.72821359,4626.4,4625.7,0.108]
[1755233443936,0.5667,4626.4,4625.7,0.108]
[1755233444139,0.5667,4626.4,4625.8,0.55]
[1755233444358,0.002,4626.4,4625.8,1.0421]
[1755233444555,0.002,4626.4,4626.1,0.108]
[1755233444942,0.4567,4626.3,4626.1,0.108]
[1755233445562,0.002,4626.4,4626.2,0.108]
[1755233447836,0.002,4626.4,4626.3,0.4921]
[1755233448037,0.002,4626.4,4626.2,0.108]
[1755233449167,0.002,4626.4,4626.3,2.71155459]
[1755233449470,0.002,4626.4,4626.3,1.32405546]
[1755233449669,0.002,4626.4,4626.3,1.0421]
[1755233450451,0.002,4626.4,4626.3,0.55]
[1755233450773,0.002,4626.4,4626.2,0.108]
[1755233451259,0.4567,4626.3,4626.2,0.108]
[1755233451632,0.4567,4626.3,4625.9,0.108]
[1755233452036,2.16165033,4626.1,4625.9,0.108]
[1755233452245,0.4539,4626.0,4625.9,0.108]
[1755233456359,0.002,4626.4,4625.9,0.108]
[1755233456741,0.002,4626.4,4625.9,0.5926]
[1755233457066,0.4559,4626.4,4625.9,0.5926]
[1755233457271,0.4539,4626.3,4625.9,0.5926]
[1755233457870,0.002,4626.4,4625.9,0.5926]
[1755233458177,0.002,4626.4,4626.0,0.4846]
[1755233459440,0.4559,4626.4,4626.0,0.4846]
[1755233459640,0.002,4626.4,4626.0,0.4846]
[1755233459841,0.002,4626.4,4626.1,0.4846]
[1755233460875,0.002,4626.4,4626.3,0.108]
[1755233461177,0.002,4626.4,4626.3,2.81955459]
[1755233461476,0.002,4626.4,4626.3,1.1426]
[1755233462846,0.002,4626.4,4626.3,3.30415459]
[1755233463165,0.002,4626.4,4626.3,1.1426]
[1755233463539,0.002,4626.4,4626.3,3.30415459]
[1755233464677,0.002,4626.4,4626.3,1.1426]
[1755233466498,0.002,4626.4,4626.3,3.30415459]
[1755233466710,0.002,4626.4,4626.3,4.16276119]
[1755233467993,0.002,4626.4,4626.3,3.30415459]
[1755233468865,0.002,4626.4,4626.3,3.320201]
[1755233469062,0.002,4626.4,4626.3,6.781301]
[1755233469267,0.002,4626.4,4626.3,6.76525459]
[1755233469487,0.002,4626.4,4626.3,10.08325459]
[1755233469767,0.002,4626.4,4626.3,12.28771863]
[1755233470072,0.002,4626.7,4626.6,2.16141442]
[1755233470397,0.002,4626.7,4626.6,5.81941442]
[1755233470695,0.002,4626.7,4626.6,10.08311442]
[1755233471072,0.002,4626.7,4626.6,11.52802096]
[1755233471877,0.002,4626.7,4626.6,3.60632096]
[1755233472088,0.002,4626.7,4626.6,2.16141442]
[1755233472282,0.002,4626.7,4626.6,2.71141442]
[1755233473301,0.002,4626.7,4626.6,3.867]
[1755233473500,0.4559,4626.7,4626.6,3.317]
[1755233473691,0.4559,4626.7,4626.6,3.867]
[1755233474915,0.002,4626.7,4626.6,3.317]
[1755233475118,0.4559,4626.7,4626.1,0.55]
[1755233475275,0.4559,4626.7,4626.3,0.55]
[1755233475803,0.4539,4626.6,4626.3,0.55]
[1755233476008,0.002,4626.7,4626.3,0.55]
[1755233476297,0.4539,4626.5,4626.3,0.55]
[1755233476502,0.002,4626.7,4626.3,0.55]
[1755233476710,0.4539,4626.4,4626.3,0.55]
[1755233478077,0.4539,4626.4,4626.3,2.71155459]
[1755233478591,0.4539,4626.4,4626.3,0.55]
[1755233480479,0.4539,4626.4,4626.2,3.317]
[1755233480683,0.9092,4626.3,4625.6,3.317]
[1755233480874,2.16164804,4626.1,4625.6,3.317]
[1755233481078,0.4539,4626.0,4625.6,3.317]
[1755233481277,0.9092,4626.0,4625.6,3.317]
[1755233481520,2.16159571,4626.3,4625.6,3.317]
[1755233481822,0.4553,4626.4,4625.6,3.317]
[1755233481823,2.61550544,4626.2,4625.8,0.108]
[1755233482016,0.4714,4626.1,4625.8,0.108]
[1755233482721,0.4714,4626.0,4625.8,0.108]
[1755233483203,0.4714,4625.9,4625.8,0.108]
[1755233486716,3.08664149,4625.9,4625.8,0.108]
[1755233486918,3.94317257,4625.9,4625.8,0.108]
[1755233487228,1.32793108,4625.9,4625.2,3.317]
[1755233487430,0.002,4627.1,4625.3,2.16202192]
[1755233487431,0.4714,4626.4,4625.3,2.16202192]
[1755233487729,0.4714,4626.4,4625.8,0.108]
[1755233487730,0.5794,4626.4,4625.8,0.108]
[1755233488309,2.74092033,4626.4,4625.8,0.108]
[1755233488615,0.4714,4626.3,4625.8,0.108]
[1755233488809,2.26952033,4626.4,4625.8,0.108]
[1755233488986,0.4714,4626.2,4625.8,0.108]
[1755233489182,0.4714,4626.1,4625.8,0.108]
[1755233489612,0.4714,4626.0,4625.8,0.108]
[1755233490112,0.4714,4625.9,4625.8,0.108]
[1755233490503,2.16155709,4626.3,4625.8,0.108]
[1755233490680,0.4714,4625.9,4625.8,0.108]
[1755233493312,0.4714,4625.9,4625.3,0.001]
[1755233493517,0.5794,4625.9,4625.3,0.109]
[1755233493913,3.317,4626.2,4625.7,0.108]
[1755233494283,3.7884,4626.2,4625.7,0.108]
[1755233494616,0.4714,4626.1,4625.7,0.108]
[1755233494788,3.317,4626.2,4625.7,0.108]
[1755233494989,0.4714,4626.0,4625.7,0.108]
[1755233495823,3.317,4626.2,4625.7,0.108]
[1755233496192,0.4714,4626.1,4625.7,0.108]
[1755233496510,0.4714,4626.0,4625.7,0.108]
[1755233496894,2.16164849,4626.1,4625.7,0.108]
[1755233497094,0.4714,4626.1,4625.7,0.108]
[1755233497290,0.4714,4626.0,4625.7,0.108]
[1755233497708,0.4714,4625.9,4625.7,0.108]
[1755233498125,5.4786025,4626.2,4625.4,0.108]
[1755233498338,0.4714,4625.8,4625.4,0.108]
[1755233498495,5.4786025,4626.2,4625.4,0.108]
[1755233498693,0.4714,4625.7,4625.4,0.108]
[1755233498918,0.4714,4626.1,4625.4,0.108]
[1755233499115,2.63307113,4626.1,4625.4,0.108]
[1755233499302,2.18872914,4626.0,4625.4,0.108]
[1755233499516,13.63033643,4625.8,4625.3,0.001]
[1755233499832,8.69097196,4625.7,4625.3,0.001]
[1755233500132,6.44816052,4625.6,4625.3,0.001]
[1755233500334,2.16197518,4625.4,4625.3,0.001]
[1755233500634,0.4714,4625.5,4625.3,0.001]
[1755233500805,0.4714,4625.4,4625.3,0.001]
[1755233501013,2.16197518,4625.4,4625.3,0.001]
[1755233501237,2.97640415,4625.4,4625.3,0.001]
[1755233501436,3.53790415,4625.4,4625.3,0.001]
[1755233503119,9.95904115,4625.4,4625.3,0.001]
[1755233503529,10.42281976,4625.4,4625.3,0.001]
[1755233505410,2.16216216,4625.0,4624.9,0.001]
[1755233505613,26.21697951,4625.0,4624.9,0.001]
[1755233505859,27.0263142,4625.0,4624.9,0.001]
[1755233506065,27.60566706,4625.0,4624.9,0.001]
[1755233506263,2.16239593,4624.5,4623.4,0.11297289]
[1755233506474,25.89992827,4624.5,4623.4,0.11297289]
[1755233506747,24.05357694,4624.5,4623.4,0.11297289]
[1755233506915,13.28674051,4624.5,4623.4,0.57257289]
[1755233507115,9.96974051,4624.5,4623.7,0.4596]
[1755233507309,13.28674051,4624.5,4623.7,0.4596]
[1755233507558,27.37057694,4624.5,4623.4,0.11297289]
[1755233507725,26.91707694,4624.5,4623.4,0.11297289]
[1755233508118,27.37057694,4624.5,4623.4,0.11297289]
[1755233510063,26.91707694,4624.5,4623.4,0.11297289]
[1755233510224,13.28674051,4624.5,4623.4,0.11297289]
[1755233510768,9.96974051,4624.5,4623.6,0.4596]
[1755233510935,9.96974051,4624.5,4623.4,0.11297289]
[1755233510936,13.74024051,4624.5,4623.4,0.11297289]
[1755233512654,9.96974051,4624.5,4623.4,0.11297289]
[1755233512828,13.28674051,4624.5,4623.6,0.4794]
[1755233513027,13.26184051,4624.5,4623.6,0.4794]
[1755233513734,13.26184051,4624.5,4623.4,0.11297289]
[1755233513933,13.74464051,4624.5,4623.4,0.11297289]
[1755233514243,14.32361221,4624.5,4623.1,0.4794]
[1755233514438,10.52381221,4624.5,4623.6,0.4794]
[1755233514655,13.26184051,4624.5,4623.6,0.4794]
[1755233518773,6.84070351,4624.5,4623.6,0.4794]
[1755233518973,13.26184051,4624.5,4623.6,0.4794]
[1755233520605,9.94484051,4624.5,4623.6,0.4794]
[1755233520804,13.26184051,4624.5,4623.6,0.4794]
[1755233522326,13.84081221,4624.5,4623.6,0.4794]
[1755233522721,13.84081221,4624.5,4623.4,0.001]
[1755233522722,14.32361221,4624.5,4623.4,0.001]
[1755233522922,13.84081221,4624.5,4623.4,0.001]
[1755233523127,13.84081221,4624.5,4623.5,0.4794]
[1755233523447,13.84081221,4624.5,4623.4,0.001]
[1755233523448,5.16244269,4624.4,4624.3,1e-08]
[1755233523653,14.04728574,4624.4,4624.3,1e-08]
[1755233523936,13.23437762,4624.4,4624.3,1e-08]
[1755233524105,13.81222418,4624.4,4624.3,1e-08]
[1755233524301,10.49522418,4624.4,4624.3,1e-08]
[1755233524504,13.23437762,4624.4,4624.3,0.47940001]
[1755233524703,13.23437762,4624.4,4624.3,1e-08]
[1755233524903,13.81222418,4624.4,4624.3,1e-08]
[1755233525304,13.23437762,4624.4,4624.3,1e-08]
[1755233525504,13.68087762,4624.4,4624.3,1e-08]
[1755233525701,14.48087762,4624.4,4624.3,1e-08]
[1755233525923,8.05974062,4624.4,4624.3,1e-08]
[1755233526133,14.48087762,4624.4,4624.3,1e-08]
[1755233526348,15.25126463,4624.4,4624.3,1e-08]
[1755233527233,14.68178014,4624.4,4624.3,1e-08]
[1755233529357,2.16262975,4624.0,4623.9,0.001]
[1755233529517,16.5500244,4624.0,4623.9,0.001]
[1755233529716,15.56544788,4624.0,4623.9,0.001]
[1755233530123,16.11994788,4624.0,4623.9,0.001]
[1755233530512,17.27839405,4624.0,4623.9,0.001]
[1755233530713,18.14841337,4624.0,4623.9,0.001]
[1755233531314,2.16286363,4623.5,4623.4,0.001]
[1755233531513,6.05164224,4623.5,4623.4,0.001]
[1755233531712,12.47277924,4623.5,4623.4,0.001]
[1755233531942,12.81580821,4623.5,4623.4,0.001]
[1755233532111,13.01721017,4623.5,4623.4,0.001]
[1755233532438,13.46371017,4623.5,4623.4,0.001]
[1755233532640,9.70021017,4623.5,4623.4,0.001]
[1755233532810,13.79052793,4623.5,4623.4,0.001]
[1755233533344,2.275,4623.2,4621.1,0.4794]
[1755233533639,1.92519666,4623.4,4621.1,0.4794]
[1755233533640,0.58010388,4622.2,4621.1,0.4794]
[1755233533846,0.108,4621.7,4621.2,0.4307]
[1755233534043,0.46377861,4622.0,4621.3,0.4955053]
[1755233534347,2.1631172,4623.0,4621.7,0.55]
[1755233534348,3.329,4623.0,4621.7,0.55]
[1755233534511,3.6613325,4622.9,4621.9,0.658]
[1755233534838,3.6613325,4622.9,4622.0,0.9101]
[1755233534839,6.88491561,4622.8,4622.0,0.9101]
[1755233535010,0.108,4622.5,4622.1,0.4794]
[1755233535210,3.333,4622.4,4622.1,0.4794]
[1755233535410,0.108,4622.5,4622.2,0.4307]
[1755233535630,3.333,4622.3,4622.2,0.4307]
[1755233535840,0.46377861,4622.9,4622.2,1.4601]
[1755233536044,2.74346456,4623.9,4622.5,0.55]
[1755233536045,0.46377861,4623.4,4622.5,0.55]
[1755233536244,3.334,4623.3,4622.9,0.108]
[1755233536417,3.334,4623.2,4623.0,0.4307]
[1755233536618,3.335,4623.2,4623.0,3.07317783]
[1755233536839,2.16336068,4623.9,4623.2,0.55]
[1755233536840,0.46377861,4623.8,4623.2,0.55]
[1755233537146,3.335,4623.7,4623.4,0.108]
[1755233537330,3.335,4623.7,4623.5,0.9101]
[1755233537534,3.335,4623.7,4623.6,0.9101]
[1755233537926,3.335,4623.7,4623.6,0.4794]
[1755233538245,3.443,4623.7,4623.1,0.4794]
[1755233538454,3.94562568,4623.7,4623.1,0.4794]
[1755233538613,3.83762568,4623.7,4623.1,0.4794]
[1755233538813,0.108,4623.3,4623.1,0.4794]
[1755233539049,3.341,4623.2,4622.7,0.108]
[1755233539250,3.341,4623.2,4622.7,0.5387]
[1755233539560,3.6859,4623.2,4622.8,0.4794]
[1755233539733,3.6859,4623.2,4622.3,2.16342241]
[1755233539916,0.108,4622.9,4622.8,0.4794]
[1755233540112,3.449,4622.9,4622.2,0.108]
[1755233540350,0.108,4622.7,4622.1,0.108]
[1755233540550,3.346,4622.6,4622.3,0.4794]
[1755233540852,3.346,4622.6,4622.4,0.4794]
[1755233541019,3.346,4622.6,4622.2,2.16346257]
[1755233541215,3.346,4622.6,4622.5,0.4794]
[1755233542348,3.346,4622.6,4622.2,0.4307]
[1755233542349,9.767137,4622.6,4621.8,2.16361569]
[1755233542566,0.108,4622.7,4622.0,2.27156043]
[1755233542567,3.351,4622.5,4622.0,2.27156043]
[1755233542855,3.352,4622.7,4622.2,0.55]
[1755233543059,1.53901567,4623.4,4622.5,0.55]
[1755233543358,3.352,4623.3,4622.6,1.0324]
[1755233543517,1.53901567,4623.4,4622.6,0.5492]
[1755233543718,1.53901567,4623.4,4622.7,2.64643653]
[1755233544018,3.353,4623.3,4622.8,0.4832]
[1755233544235,3.353,4623.3,4622.8,0.9244]
[1755233544445,3.353,4623.3,4622.9,0.4412]
[1755233544624,1.53901567,4623.4,4622.9,3.08754271]
[1755233544830,3.352,4623.3,4623.0,0.9244]
[1755233545051,3.352,4623.3,4623.0,0.4412]
[1755233545215,3.352,4623.3,4623.1,0.4832]
[1755233545418,4.89001567,4623.4,4621.7,3.351]
[1755233545632,4.89101567,4623.4,4623.2,0.4832]
[1755233545853,4.89101567,4623.4,4623.3,0.4832]
[1755233546147,4.89101567,4623.4,4623.0,2.64629182]
[1755233546355,4.89101567,4623.4,4623.1,0.4832]
[1755233546724,4.89101567,4623.4,4623.2,0.4832]
[1755233546921,4.89101567,4623.4,4623.1,2.16304437]
[1755233547158,4.89101567,4623.4,4623.3,0.4832]
[1755233547735,4.89101567,4623.4,4623.3,2.64615719]
[1755233548039,4.89101567,4623.4,4623.3,3.08735719]
[1755233548357,4.89101567,4623.4,4623.3,0.9244]
[1755233548546,1.53901567,4623.4,4623.3,0.9244]
[1755233548745,1.53901567,4623.4,4623.3,0.4832]
[1755233549741,1.53901567,4623.4,4623.2,0.108]
[1755233550061,1.53901567,4623.4,4622.6,0.4832]
[1755233550230,1.53901567,4623.4,4622.9,0.108]
[1755233550424,3.349,4623.3,4623.0,0.4832]
[1755233550627,3.349,4623.3,4622.9,0.5492]
[1755233550628,3.349,4623.3,4622.9,0.108]
[1755233551655,4.06488354,4623.3,4620.9,4.25]
[1755233551854,0.108,4623.0,4622.5,0.108]
[1755233552034,3.349,4622.9,4622.6,0.4832]
[1755233552248,3.349,4622.9,4622.7,0.4832]
[1755233553457,3.7849,4622.9,4622.5,0.108]
[1755233554025,0.108,4623.0,4622.5,2.2713278]
[1755233554231,3.348,4622.9,4622.6,2.64648262]
[1755233554460,1.53901567,4623.4,4622.7,0.49928849]
[1755233554638,3.348,4623.3,4622.9,2.16313253]
[1755233554834,1.53901567,4623.4,4622.8,0.108]
[1755233555034,3.348,4623.3,4623.0,0.4832]
[1755233555230,1.53901567,4623.4,4623.1,0.4832]
[1755233555470,1.53901567,4623.4,4623.2,0.5912]
[1755233555632,1.53901567,4623.4,4623.1,2.16302528]
[1755233555945,1.53901567,4623.4,4623.2,2.27097832]
[1755233556263,1.53901567,4623.4,4623.2,0.108]
[1755233556465,1.53901567,4623.4,4623.3,2.16295719]
[1755233556875,1.54101567,4623.4,4623.3,3.15636161]
[1755233557166,1.54101567,4623.4,4623.3,3.59756161]
[1755233557667,1.54101567,4623.4,4623.3,3.63956161]
[1755233557842,1.54101567,4623.4,4623.2,0.108]
[1755233558035,1.54101567,4623.4,4623.3,3.30415719]
[1755233558472,1.54101567,4623.4,4623.3,2.82095719]
[1755233558965,1.54101567,4623.4,4623.3,3.30415719]
[1755233559476,1.54101567,4623.4,4623.3,2.75415719]
[1755233561253,1.54101567,4623.4,4623.3,3.30415719]
[1755233561453,1.54101567,4623.4,4623.3,3.85087673]
[1755233561965,1.54101567,4623.4,4623.3,3.36767673]
[1755233562867,1.54101567,4623.4,4623.3,3.85087673]
[1755233563882,1.54101567,4623.4,4623.3,3.36767673]
[1755233564047,1.54101567,4623.4,4623.3,2.82095719]
[1755233564948,1.54101567,4623.4,4623.3,0.108]
[1755233565452,1.97691567,4623.4,4623.3,0.108]
[1755233566189,1.97691567,4623.4,4622.9,2.16313199]
[1755233566493,0.4359,4623.3,4623.0,0.108]
[1755233566891,1.54101567,4623.4,4623.0,2.27109646]
[1755233567058,1.54101567,4623.4,4622.4,2.16337833]
[1755233567059,0.4359,4623.3,4622.4,2.16337833]
[1755233567262,0.5439,4623.3,4622.7,0.108]
[1755233567763,0.108,4623.3,4623.0,2.16307349]
[1755233567959,0.108,4623.3,4623.0,0.4832]
[1755233568162,1.54101567,4623.4,4623.1,2.27104677]
[1755233568382,1.54101567,4623.4,4623.1,0.108]
[1755233568783,1.97691567,4623.4,4623.1,0.108]
[1755233568958,1.54101567,4623.4,4623.1,0.108]
[1755233569165,0.4359,4623.3,4623.1,0.108]
[1755233569592,0.4359,4623.2,4623.1,0.108]
[1755233569787,0.4359,4623.2,4622.9,0.108]
[1755233569994,0.4359,4623.2,4622.9,2.27113983]
[1755233570985,0.4359,4623.2,4622.9,0.108]
[1755233571604,0.4359,4623.2,4622.9,2.27113215]
[1755233571975,0.4359,4623.2,4623.0,2.16309224]
[1755233572177,0.4359,4623.2,4622.9,0.108]
[1755233573010,0.4386,4623.2,4622.9,0.108]
[1755233573206,0.4386,4623.2,4622.9,2.27114199]
[1755233573406,0.4386,4623.2,4622.9,0.108]
[1755233573999,1.54101567,4623.4,4622.9,0.108]
[1755233574211,0.4386,4623.3,4622.9,0.108]
[1755233574414,0.4386,4623.2,4622.9,0.108]
[1755233574601,0.4386,4623.2,4622.9,2.27114412]
[1755233575598,0.4386,4623.2,4622.9,0.108]
[1755233576301,1.54101567,4623.4,4622.9,0.108]
[1755233576494,1.54101567,4623.4,4622.9,2.27113433]
[1755233576696,1.54101567,4623.4,4623.0,0.55]
[1755233577012,1.54101567,4623.4,4623.3,0.108]
[1755233578579,1.97961567,4623.4,4623.3,0.108]
[1755233579899,1.54101567,4623.4,4623.3,2.27095719]
[1755233580093,1.54101567,4623.4,4623.3,0.108]
[1755233582819,1.54101567,4623.4,4623.3,2.27095719]
[1755233583021,1.54101567,4623.4,4623.3,0.108]
[1755233583424,2.1364207,4623.4,4622.9,4.358]
[1755233583586,0.5466,4623.3,4622.9,4.25]
[1755233585097,0.108,4623.3,4622.9,4.25]
[1755233585300,0.4386,4623.2,4622.9,4.25]
[1755233585715,0.566,4623.3,4622.9,4.25]
[1755233585988,0.4386,4623.1,4622.9,4.25]
[1755233586197,0.4386,4623.0,4622.9,4.25]
[1755233586835,0.4386,4623.0,4622.7,0.108]
[1755233588743,0.108,4623.3,4622.7,0.108]
[1755233589100,0.4386,4623.2,4622.7,0.108]
[1755233589300,0.4386,4623.1,4622.7,0.108]
[1755233589869,0.82080554,4623.2,4622.7,0.5634]
[1755233590143,0.108,4623.3,4622.7,2.72663349]
[1755233590431,0.108,4623.3,4622.7,0.5634]
[1755233590808,0.108,4623.3,4622.7,2.72663545]
[1755233591217,0.108,4623.3,4622.7,0.5634]
[1755233591733,0.5466,4623.3,4622.7,0.108]
[1755233591909,0.4042405,4623.2,4622.7,0.108]
[1755233592433,0.4386,4623.1,4622.7,0.108]
[1755233592833,0.8966,4623.1,4622.7,0.108]
[1755233593009,0.4042405,4623.2,4622.7,0.108]
[1755233593214,0.4386,4623.0,4622.7,0.108]
[1755233593734,0.4386,4622.9,4622.7,0.108]
[1755233594124,0.8428405,4623.2,4622.7,0.108]
[1755233594701,4.1718405,4623.2,4622.7,0.108]
[1755233595025,4.1718405,4623.2,4622.7,0.5634]
[1755233595334,0.4386,4623.1,4622.7,0.5634]
[1755233596052,3.7332405,4623.2,4622.7,0.108]
[1755233596208,0.4386,4623.0,4622.7,0.108]
[1755233597953,0.108,4623.3,4622.7,0.108]
[1755233598253,3.7656,4623.2,4622.7,0.108]
[1755233598629,3.327,4623.2,4622.7,0.108]
[1755233598807,0.4386,4623.1,4622.7,2.27122544]
[1755233599018,0.4386,4623.0,4622.7,0.108]
[1755233599446,3.327,4623.2,4622.7,0.108]
[1755233599447,0.4386,4622.9,4622.7,0.108]
[1755233599946,3.327,4623.2,4622.7,0.108]